{"text_format":"3","workbook":"xlsx","n_sheets":2,"sheets":["График работы сотрудников","Настройка"],"not_rendered":{"defined_names":21},"read":"whole","date_system":"1900"}

{"sheet":"График работы сотрудников","index":0,"n_rows":296,"n_cols":21,"rows_kept":296,"merged":[[6,1,6,9],[66,1,66,9],[126,1,126,9],[186,1,186,9],[246,1,246,9]]}
["Расписание смен сотрудников"]
[]
[null,"ИТОГО:",null,{"$f":"SUM(4:4)","v":{"v":56,"d":"56.00"}}]
[null,"ЧАСЫ:",null,{"$f":"ОбщееКоличествоРабочихЧасовПоВсемСотрудникамЗаДень","v":8},{"$f":"ОбщееКоличествоРабочихЧасовПоВсемСотрудникамЗаДень","v":8},{"$f":"ОбщееКоличествоРабочихЧасовПоВсемСотрудникамЗаДень","v":8},8,8,8,8,{"v":0,"d":"0.00"},{"v":0,"d":"0.00"},{"v":0,"d":"0.00"},{"v":0,"d":"0.00"},{"v":0,"d":"0.00"},{"v":0,"d":"0.00"},{"v":0,"d":"0.00"},{"v":0,"d":"0.00"},{"v":0,"d":"0.00"},{"v":0,"d":"0.00"},{"v":0,"d":"0.00"}]
[null,"СОТРУДНИК:",null,"Егоров, В.","Горноженко Д.","Климов С.","Горноженко Д.","Верный Г.","Ерёменко А.","Ильина Ю."]
[]
[null,"2012-07-16T09:00:00"]
[null,{"$f":"B7","v":41106.375},{"$nulls":5},"Отпуск"]
[null,{"$f":"ОтображениеПериодов","v":":15"},null,"Конторка дежурного",{"$nulls":3},"Отпуск"]
[null,":30",null,"Конторка дежурного",{"$nulls":3},"Отпуск"]
[null,":45",null,"Конторка дежурного","Начальник смены",null,"Отдел обсл. клиентов","Отпуск"]
[null,"10:00",null,"Конторка дежурного","Начальник смены",null,"Отдел обсл. клиентов","Отпуск"]
[null,":15",null,"Конторка дежурного","Начальник смены",null,"Отдел обсл. клиентов","Отпуск"]
[null,":30",null,"Конторка дежурного","Начальник смены",null,"Отдел обсл. клиентов","Отпуск","Бухгалтерский учет"]
[null,":45",null,"Конторка дежурного","Начальник смены",null,"Отдел обсл. клиентов","Отпуск","Бухгалтерский учет","Вахтер"]
[null,"11:00",null,"Конторка дежурного","Начальник смены",null,"Отдел обсл. клиентов","Отпуск","Бухгалтерский учет","Вахтер"]
[null,":15",null,"Конторка дежурного","Начальник смены","Консультант","Отдел обсл. клиентов","Отпуск","Бухгалтерский учет","Вахтер"]
[null,":30",null,"Конторка дежурного","Перерыв","Консультант","Отдел обсл. клиентов","Отпуск","Бухгалтерский учет","Вахтер"]
[null,":45",null,"Обед","Начальник смены","Консультант","Отдел обсл. клиентов","Отпуск","Бухгалтерский учет","Вахтер"]
[null,"12:00",null,"Обед","Начальник смены","Консультант","Отдел обсл. клиентов","Отпуск","Бухгалтерский учет","Вахтер"]
[null,":15",null,"Конторка дежурного","Начальник смены","Консультант","Отдел обсл. клиентов","Отпуск","Перерыв","Вахтер"]
[null,":30",null,"Конторка дежурного","Начальник смены","Перерыв","Отдел обсл. клиентов","Отпуск","Телефоны","Перерыв"]
[null,":45",null,"Конторка дежурного","Начальник смены","Консультант","Отдел обсл. клиентов","Отпуск","Телефоны","Вахтер"]
[null,"13:00",null,"Конторка дежурного","Начальник смены","Консультант","Отдел обсл. клиентов","Отпуск","Телефоны","Вахтер"]
[null,":15",null,"Конторка дежурного","Начальник смены","Консультант","Обед","Отпуск","Телефоны","Вахтер"]
[null,":30",null,null,"Начальник смены","Консультант","Обед","Отпуск","Телефоны","Вахтер"]
[null,":45",null,null,"Начальник смены","Консультант","Обед","Отпуск","Обед","Вахтер"]
[null,"14:00",null,"Кассир","Обед","Консультант","Обед","Отпуск","Обед","Вахтер"]
[null,":15",null,"Кассир","Обед","Консультант","Отдел обсл. клиентов","Отпуск","Телефоны","Вахтер"]
[null,":30",null,"Кассир","Обед","Обед","Отдел обсл. клиентов","Отпуск","Телефоны","Обед"]
[null,":45",null,"Кассир","Обед","Обед","Отдел обсл. клиентов","Отпуск","Телефоны","Обед"]
[null,"15:00",null,"Кассир","Служба безопасности","Обед","Отдел обсл. клиентов","Отпуск","Телефоны","Обед"]
[null,":15",null,"Кассир","Служба безопасности","Обед","Отдел обсл. клиентов","Отпуск","Телефоны","Обед"]
[null,":30",null,"Кассир","Служба безопасности","Консультант","Отдел обсл. клиентов","Отпуск","Телефоны","Закрыто"]
[null,":45",null,"Кассир","Служба безопасности","Консультант","Отдел обсл. клиентов","Отпуск","Телефоны","Закрыто"]
[null,"16:00",null,"Кассир","Служба безопасности","Консультант","Отдел обсл. клиентов","Отпуск","Перерыв","Закрыто"]
[null,":15",null,"Перерыв","Служба безопасности","Консультант","Перерыв","Отпуск","Телефоны","Закрыто"]
[null,":30",null,"Кассир","Служба безопасности","Консультант","Отдел обсл. клиентов","Отпуск","Телефоны","Закрыто"]
[null,":45",null,"Кассир","Служба безопасности","Консультант","Отдел обсл. клиентов","Отпуск","Телефоны","Закрыто"]
[null,"17:00",null,"Кассир","Служба безопасности","Консультант","Отдел обсл. клиентов",null,"Телефоны","Закрыто"]
[null,{"$f":"ОтображениеПериодов","v":":15"},null,"Кассир","Служба безопасности","Консультант","Отдел обсл. клиентов",null,"Телефоны","Закрыто"]
[null,":30",null,"Кассир","Служба безопасности","Консультант","Отдел обсл. клиентов",null,"Телефоны","Закрыто"]
[null,":45",null,"Кассир","Служба безопасности","Консультант","Отдел обсл. клиентов",null,"Телефоны","Закрыто"]
[null,"18:00",null,"Кассир","Служба безопасности","Консультант","Отдел обсл. клиентов",null,"Телефоны","Закрыто"]
[null,":15",null,"Кассир","Служба безопасности","Консультант","Отдел обсл. клиентов",null,"Телефоны","Закрыто"]
[null,":30",null,null,"Служба безопасности","Консультант","Отдел обсл. клиентов",null,"Телефоны","Закрыто"]
[null,":45",null,null,"Служба безопасности","Перерыв","Отдел обсл. клиентов",null,"Телефоны","Перерыв"]
[null,"19:00",{"$nulls":3},"Консультант",null,null,"Телефоны","Закрыто"]
[null,":15",{"$nulls":3},"Консультант",null,null,"Телефоны","Закрыто"]
[null,":30",{"$nulls":3},"Консультант",{"$nulls":3},"Закрыто"]
[null,":45",{"$nulls":3},"Консультант",{"$nulls":3},"Закрыто"]
[null,"20:00",{"$nulls":3},"Консультант",{"$nulls":3},"Закрыто"]
[null,":15",{"$nulls":3},"Консультант"]
[null,":30",{"$nulls":3},"Консультант"]
[null,":45"]
[null,"21:00"]
[null,":15"]
[null,":30"]
[null,":45"]
[null,"22:00"]
["График работы сотрудников"]
[]
[null,"ИТОГО:",null,{"$f":"SUM(64:64)","v":{"v":56,"d":"56.00"}}]
[null,"ЧАСЫ:",null,{"$f":"ОбщееКоличествоРабочихЧасовПоВсемСотрудникамЗаДень","v":8},8,8,8,8,8,8,{"v":0,"d":"0.00"},{"v":0,"d":"0.00"},{"v":0,"d":"0.00"},{"v":0,"d":"0.00"},{"v":0,"d":"0.00"},{"v":0,"d":"0.00"},{"v":0,"d":"0.00"},{"v":0,"d":"0.00"},{"v":0,"d":"0.00"},{"v":0,"d":"0.00"},{"v":0,"d":"0.00"}]
[null,"СОТРУДНИК:",null,"Егоров, В.","Горноженко Д.","Климов С.","Грачев Н.","Верный Г.","Ерёменко А.","Ильина Ю."]
[]
[null,{"$f":"B7+1","v":"2012-07-17T09:00:00"}]
[null,{"$f":"B67","v":41107.375},{"$nulls":5},"Отпуск"]
[null,{"$f":"ОтображениеПериодов","v":":15"},null,"Конторка дежурного",{"$nulls":3},"Отпуск"]
[null,":30",null,"Конторка дежурного",{"$nulls":3},"Отпуск"]
[null,":45",null,"Конторка дежурного","Начальник смены",null,"Отдел обсл. клиентов","Отпуск"]
[null,"1:00",null,"Конторка дежурного","Начальник смены",null,"Отдел обсл. клиентов","Отпуск"]
[null,":15",null,"Конторка дежурного","Начальник смены",null,"Отдел обсл. клиентов","Отпуск"]
[null,":30",null,"Конторка дежурного","Начальник смены",null,"Отдел обсл. клиентов","Отпуск","Бухгалтерский учет"]
[null,":45",null,"Конторка дежурного","Начальник смены",null,"Отдел обсл. клиентов","Отпуск","Бухгалтерский учет","Вахтер"]
[null,"2:00",null,"Конторка дежурного","Начальник смены",null,"Отдел обсл. клиентов","Отпуск","Бухгалтерский учет","Вахтер"]
[null,":15",null,"Конторка дежурного","Начальник смены","Консультант","Отдел обсл. клиентов","Отпуск","Бухгалтерский учет","Вахтер"]
[null,":30",null,"Конторка дежурного","Перерыв","Консультант","Отдел обсл. клиентов","Отпуск","Бухгалтерский учет","Вахтер"]
[null,":45",null,"Обед","Начальник смены","Консультант","Отдел обсл. клиентов","Отпуск","Бухгалтерский учет","Вахтер"]
[null,"3:00",null,"Обед","Начальник смены","Консультант","Отдел обсл. клиентов","Отпуск","Бухгалтерский учет","Вахтер"]
[null,":15",null,"Конторка дежурного","Начальник смены","Консультант","Отдел обсл. клиентов","Отпуск","Перерыв","Вахтер"]
[null,":30",null,"Конторка дежурного","Начальник смены","Перерыв","Отдел обсл. клиентов","Отпуск","Телефоны","Перерыв"]
[null,":45",null,"Конторка дежурного","Начальник смены","Консультант","Отдел обсл. клиентов","Отпуск","Телефоны","Вахтер"]
[null,"4:00",null,"Конторка дежурного","Начальник смены","Консультант","Отдел обсл. клиентов","Отпуск","Телефоны","Вахтер"]
[null,":15",null,"Конторка дежурного","Начальник смены","Консультант","Обед","Отпуск","Телефоны","Вахтер"]
[null,":30",null,null,"Начальник смены","Консультант","Обед","Отпуск","Телефоны","Вахтер"]
[null,":45",null,null,"Начальник смены","Консультант","Обед","Отпуск","Обед","Вахтер"]
[null,"5:00",null,"Кассир","Обед","Консультант","Обед","Отпуск","Обед","Вахтер"]
[null,":15",null,"Кассир","Обед","Консультант","Отдел обсл. клиентов","Отпуск","Телефоны","Вахтер"]
[null,":30",null,"Кассир","Обед","Обед","Отдел обсл. клиентов","Отпуск","Телефоны","Обед"]
[null,":45",null,"Кассир","Обед","Обед","Отдел обсл. клиентов","Отпуск","Телефоны","Обед"]
[null,"6:00",null,"Кассир","Служба безопасности","Обед","Отдел обсл. клиентов","Отпуск","Телефоны","Обед"]
[null,":15",null,"Кассир","Служба безопасности","Обед","Отдел обсл. клиентов","Отпуск","Телефоны","Обед"]
[null,":30",null,"Кассир","Служба безопасности","Консультант","Отдел обсл. клиентов","Отпуск","Телефоны","Закрыто"]
[null,":45",null,"Кассир","Служба безопасности","Консультант","Отдел обсл. клиентов","Отпуск","Телефоны","Закрыто"]
[null,"7:00",null,"Кассир","Служба безопасности","Консультант","Отдел обсл. клиентов","Отпуск","Перерыв","Закрыто"]
[null,":15",null,"Перерыв","Служба безопасности","Консультант","Перерыв","Отпуск","Телефоны","Закрыто"]
[null,":30",null,"Кассир","Служба безопасности","Консультант","Отдел обсл. клиентов","Отпуск","Телефоны","Закрыто"]
[null,":45",null,"Кассир","Служба безопасности","Консультант","Отдел обсл. клиентов","Отпуск","Телефоны","Закрыто"]
[null,"8:00",null,"Кассир","Служба безопасности","Консультант","Отдел обсл. клиентов",null,"Телефоны","Закрыто"]
[null,":15",null,"Кассир","Служба безопасности","Консультант","Отдел обсл. клиентов",null,"Телефоны","Закрыто"]
[null,":30",null,"Кассир","Служба безопасности","Консультант","Отдел обсл. клиентов",null,"Телефоны","Закрыто"]
[null,":45",null,"Кассир","Служба безопасности","Консультант","Отдел обсл. клиентов",null,"Телефоны","Закрыто"]
[null,"9:00",null,"Кассир","Служба безопасности","Консультант","Отдел обсл. клиентов",null,"Телефоны","Закрыто"]
[null,":15",null,"Кассир","Служба безопасности","Консультант","Отдел обсл. клиентов",null,"Телефоны","Закрыто"]
[null,":30",null,null,"Служба безопасности","Консультант","Отдел обсл. клиентов",null,"Телефоны","Закрыто"]
[null,":45",null,null,"Служба безопасности","Перерыв","Отдел обсл. клиентов",null,"Телефоны","Перерыв"]
[null,"10:00",{"$nulls":3},"Консультант",null,null,"Телефоны","Закрыто"]
[null,":15",{"$nulls":3},"Консультант",null,null,"Телефоны","Закрыто"]
[null,":30",{"$nulls":3},"Консультант",{"$nulls":3},"Закрыто"]
[null,":45",{"$nulls":3},"Консультант",{"$nulls":3},"Закрыто"]
[null,"11:00",{"$nulls":3},"Консультант",{"$nulls":3},"Закрыто"]
[null,":15",{"$nulls":3},"Консультант"]
[null,":30",{"$nulls":3},"Консультант"]
[null,":45"]
[null,"12:00"]
[]
[]
[]
[]
["График работы сотрудников"]
[]
[null,"ИТОГО:",null,{"$f":"SUM(124:124)","v":{"v":56,"d":"56.00"}}]
[null,"ЧАСЫ:",null,{"$f":"ОбщееКоличествоРабочихЧасовПоВсемСотрудникамЗаДень","v":8},8,8,8,8,8,8,{"v":0,"d":"0.00"},{"v":0,"d":"0.00"},{"v":0,"d":"0.00"},{"v":0,"d":"0.00"},{"v":0,"d":"0.00"},{"v":0,"d":"0.00"},{"v":0,"d":"0.00"},{"v":0,"d":"0.00"},{"v":0,"d":"0.00"},{"v":0,"d":"0.00"},{"v":0,"d":"0.00"}]
[null,"СОТРУДНИК:",null,"Егоров, В.","Горноженко Д.","Климов С.","Грачев Н.","Верный Г.","Ерёменко А.","Ильина Ю."]
[]
[null,{"$f":"B67+1","v":"2012-07-18T09:00:00"}]
[null,{"$f":"B127","v":41108.375},{"$nulls":5},"Отпуск"]
[null,{"$f":"ОтображениеПериодов","v":":15"},null,"Конторка дежурного",{"$nulls":3},"Отпуск"]
[null,":30",null,"Конторка дежурного",{"$nulls":3},"Отпуск"]
[null,":45",null,"Конторка дежурного","Начальник смены",null,"Отдел обсл. клиентов","Отпуск"]
[null,"16:00",null,"Конторка дежурного","Начальник смены",null,"Отдел обсл. клиентов","Отпуск"]
[null,":15",null,"Конторка дежурного","Начальник смены",null,"Отдел обсл. клиентов","Отпуск"]
[null,":30",null,"Конторка дежурного","Начальник смены",null,"Отдел обсл. клиентов","Отпуск","Бухгалтерский учет"]
[null,":45",null,"Конторка дежурного","Начальник смены",null,"Отдел обсл. клиентов","Отпуск","Бухгалтерский учет","Вахтер"]
[null,"17:00",null,"Конторка дежурного","Начальник смены",null,"Отдел обсл. клиентов","Отпуск","Бухгалтерский учет","Вахтер"]
[null,":15",null,"Конторка дежурного","Начальник смены","Консультант","Отдел обсл. клиентов","Отпуск","Бухгалтерский учет","Вахтер"]
[null,":30",null,"Конторка дежурного","Перерыв","Консультант","Отдел обсл. клиентов","Отпуск","Бухгалтерский учет","Вахтер"]
[null,":45",null,"Обед","Начальник смены","Консультант","Отдел обсл. клиентов","Отпуск","Бухгалтерский учет","Вахтер"]
[null,"18:00",null,"Обед","Начальник смены","Консультант","Отдел обсл. клиентов","Отпуск","Бухгалтерский учет","Вахтер"]
[null,":15",null,"Конторка дежурного","Начальник смены","Консультант","Отдел обсл. клиентов","Отпуск","Перерыв","Вахтер"]
[null,":30",null,"Конторка дежурного","Начальник смены","Перерыв","Отдел обсл. клиентов","Отпуск","Телефоны","Перерыв"]
[null,":45",null,"Конторка дежурного","Начальник смены","Консультант","Отдел обсл. клиентов","Отпуск","Телефоны","Вахтер"]
[null,"19:00",null,"Конторка дежурного","Начальник смены","Консультант","Отдел обсл. клиентов","Отпуск","Телефоны","Вахтер"]
[null,":15",null,"Конторка дежурного","Начальник смены","Консультант","Обед","Отпуск","Телефоны","Вахтер"]
[null,":30",null,null,"Начальник смены","Консультант","Обед","Отпуск","Телефоны","Вахтер"]
[null,":45",null,null,"Начальник смены","Консультант","Обед","Отпуск","Обед","Вахтер"]
[null,"20:00",null,"Кассир","Обед","Консультант","Обед","Отпуск","Обед","Вахтер"]
[null,":15",null,"Кассир","Обед","Консультант","Отдел обсл. клиентов","Отпуск","Телефоны","Вахтер"]
[null,":30",null,"Кассир","Обед","Обед","Отдел обсл. клиентов","Отпуск","Телефоны","Обед"]
[null,":45",null,"Кассир","Обед","Обед","Отдел обсл. клиентов","Отпуск","Телефоны","Обед"]
[null,"21:00",null,"Кассир","Служба безопасности","Обед","Отдел обсл. клиентов","Отпуск","Телефоны","Обед"]
[null,":15",null,"Кассир","Служба безопасности","Обед","Отдел обсл. клиентов","Отпуск","Телефоны","Обед"]
[null,":30",null,"Кассир","Служба безопасности","Консультант","Отдел обсл. клиентов","Отпуск","Телефоны","Закрыто"]
[null,":45",null,"Кассир","Служба безопасности","Консультант","Отдел обсл. клиентов","Отпуск","Телефоны","Закрыто"]
[null,"22:00",null,"Кассир","Служба безопасности","Консультант","Отдел обсл. клиентов","Отпуск","Перерыв","Закрыто"]
[null,":15",null,"Перерыв","Служба безопасности","Консультант","Перерыв","Отпуск","Телефоны","Закрыто"]
[null,":30",null,"Кассир","Служба безопасности","Консультант","Отдел обсл. клиентов","Отпуск","Телефоны","Закрыто"]
[null,":45",null,"Кассир","Служба безопасности","Консультант","Отдел обсл. клиентов","Отпуск","Телефоны","Закрыто"]
[null,"23:00",null,"Кассир","Служба безопасности","Консультант","Отдел обсл. клиентов",null,"Телефоны","Закрыто"]
[null,{"$f":"ОтображениеПериодов","v":":15"},null,"Кассир","Служба безопасности","Консультант","Отдел обсл. клиентов",null,"Телефоны","Закрыто"]
[null,":30",null,"Кассир","Служба безопасности","Консультант","Отдел обсл. клиентов",null,"Телефоны","Закрыто"]
[null,":45",null,"Кассир","Служба безопасности","Консультант","Отдел обсл. клиентов",null,"Телефоны","Закрыто"]
[null,"0:00",null,"Кассир","Служба безопасности","Консультант","Отдел обсл. клиентов",null,"Телефоны","Закрыто"]
[null,":15",null,"Кассир","Служба безопасности","Консультант","Отдел обсл. клиентов",null,"Телефоны","Закрыто"]
[null,":30",null,null,"Служба безопасности","Консультант","Отдел обсл. клиентов",null,"Телефоны","Закрыто"]
[null,":45",null,null,"Служба безопасности","Перерыв","Отдел обсл. клиентов",null,"Телефоны","Перерыв"]
[null,"1:00",{"$nulls":3},"Консультант",null,null,"Телефоны","Закрыто"]
[null,":15",{"$nulls":3},"Консультант",null,null,"Телефоны","Закрыто"]
[null,":30",{"$nulls":3},"Консультант",{"$nulls":3},"Закрыто"]
[null,":45",{"$nulls":3},"Консультант",{"$nulls":3},"Закрыто"]
[null,"2:00",{"$nulls":3},"Консультант",{"$nulls":3},"Закрыто"]
[null,":15",{"$nulls":3},"Консультант"]
[null,":30",{"$nulls":3},"Консультант"]
[null,":45"]
[null,"3:00"]
[null,":15"]
[null,":30"]
[null,":45"]
[]
["График работы сотрудников"]
[]
[null,"ИТОГО:",null,{"$f":"SUM(184:184)","v":{"v":56,"d":"56.00"}}]
[null,"ЧАСЫ:",null,{"$f":"ОбщееКоличествоРабочихЧасовПоВсемСотрудникамЗаДень","v":8},8,8,8,8,8,8,{"v":0,"d":"0.00"},{"v":0,"d":"0.00"},{"v":0,"d":"0.00"},{"v":0,"d":"0.00"},{"v":0,"d":"0.00"},{"v":0,"d":"0.00"},{"v":0,"d":"0.00"},{"v":0,"d":"0.00"},{"v":0,"d":"0.00"},{"v":0,"d":"0.00"},{"v":0,"d":"0.00"}]
[null,"СОТРУДНИК:",null,"Егоров, В.","Горноженко Д.","Климов С.","Грачев Н.","Верный Г.","Ерёменко А.","Ильина Ю."]
[]
[null,{"$f":"B127+1","v":"2012-07-19T09:00:00"}]
[null,{"$f":"B187","v":41109.375},{"$nulls":5},"Отпуск"]
[null,{"$f":"ОтображениеПериодов","v":":15"},null,"Конторка дежурного",{"$nulls":3},"Отпуск"]
[null,":30",null,"Конторка дежурного",{"$nulls":3},"Отпуск"]
[null,":45",null,"Конторка дежурного","Начальник смены",null,"Отдел обсл. клиентов","Отпуск"]
[null,"7:00",null,"Конторка дежурного","Начальник смены",null,"Отдел обсл. клиентов","Отпуск"]
[null,":15",null,"Конторка дежурного","Начальник смены",null,"Отдел обсл. клиентов","Отпуск"]
[null,":30",null,"Конторка дежурного","Начальник смены",null,"Отдел обсл. клиентов","Отпуск","Бухгалтерский учет"]
[null,":45",null,"Конторка дежурного","Начальник смены",null,"Отдел обсл. клиентов","Отпуск","Бухгалтерский учет","Вахтер"]
[null,"8:00",null,"Конторка дежурного","Начальник смены",null,"Отдел обсл. клиентов","Отпуск","Бухгалтерский учет","Вахтер"]
[null,":15",null,"Конторка дежурного","Начальник смены","Консультант","Отдел обсл. клиентов","Отпуск","Бухгалтерский учет","Вахтер"]
[null,":30",null,"Конторка дежурного","Перерыв","Консультант","Отдел обсл. клиентов","Отпуск","Бухгалтерский учет","Вахтер"]
[null,":45",null,"Обед","Начальник смены","Консультант","Отдел обсл. клиентов","Отпуск","Бухгалтерский учет","Вахтер"]
[null,"9:00",null,"Обед","Начальник смены","Консультант","Отдел обсл. клиентов","Отпуск","Бухгалтерский учет","Вахтер"]
[null,":15",null,"Конторка дежурного","Начальник смены","Консультант","Отдел обсл. клиентов","Отпуск","Перерыв","Вахтер"]
[null,":30",null,"Конторка дежурного","Начальник смены","Перерыв","Отдел обсл. клиентов","Отпуск","Телефоны","Перерыв"]
[null,":45",null,"Конторка дежурного","Начальник смены","Консультант","Отдел обсл. клиентов","Отпуск","Телефоны","Вахтер"]
[null,"10:00",null,"Конторка дежурного","Начальник смены","Консультант","Отдел обсл. клиентов","Отпуск","Телефоны","Вахтер"]
[null,":15",null,"Конторка дежурного","Начальник смены","Консультант","Обед","Отпуск","Телефоны","Вахтер"]
[null,":30",null,null,"Начальник смены","Консультант","Обед","Отпуск","Телефоны","Вахтер"]
[null,":45",null,null,"Начальник смены","Консультант","Обед","Отпуск","Обед","Вахтер"]
[null,"11:00",null,"Кассир","Обед","Консультант","Обед","Отпуск","Обед","Вахтер"]
[null,":15",null,"Кассир","Обед","Консультант","Отдел обсл. клиентов","Отпуск","Телефоны","Вахтер"]
[null,":30",null,"Кассир","Обед","Обед","Отдел обсл. клиентов","Отпуск","Телефоны","Обед"]
[null,":45",null,"Кассир","Обед","Обед","Отдел обсл. клиентов","Отпуск","Телефоны","Обед"]
[null,"12:00",null,"Кассир","Служба безопасности","Обед","Отдел обсл. клиентов","Отпуск","Телефоны","Обед"]
[null,":15",null,"Кассир","Служба безопасности","Обед","Отдел обсл. клиентов","Отпуск","Телефоны","Обед"]
[null,":30",null,"Кассир","Служба безопасности","Консультант","Отдел обсл. клиентов","Отпуск","Телефоны","Закрыто"]
[null,":45",null,"Кассир","Служба безопасности","Консультант","Отдел обсл. клиентов","Отпуск","Телефоны","Закрыто"]
[null,"13:00",null,"Кассир","Служба безопасности","Консультант","Отдел обсл. клиентов","Отпуск","Перерыв","Закрыто"]
[null,":15",null,"Перерыв","Служба безопасности","Консультант","Перерыв","Отпуск","Телефоны","Закрыто"]
[null,":30",null,"Кассир","Служба безопасности","Консультант","Отдел обсл. клиентов","Отпуск","Телефоны","Закрыто"]
[null,":45",null,"Кассир","Служба безопасности","Консультант","Отдел обсл. клиентов","Отпуск","Телефоны","Закрыто"]
[null,"14:00",null,"Кассир","Служба безопасности","Консультант","Отдел обсл. клиентов",null,"Телефоны","Закрыто"]
[null,":15",null,"Кассир","Служба безопасности","Консультант","Отдел обсл. клиентов",null,"Телефоны","Закрыто"]
[null,":30",null,"Кассир","Служба безопасности","Консультант","Отдел обсл. клиентов",null,"Телефоны","Закрыто"]
[null,":45",null,"Кассир","Служба безопасности","Консультант","Отдел обсл. клиентов",null,"Телефоны","Закрыто"]
[null,"15:00",null,"Кассир","Служба безопасности","Консультант","Отдел обсл. клиентов",null,"Телефоны","Закрыто"]
[null,":15",null,"Кассир","Служба безопасности","Консультант","Отдел обсл. клиентов",null,"Телефоны","Закрыто"]
[null,":30",null,null,"Служба безопасности","Консультант","Отдел обсл. клиентов",null,"Телефоны","Закрыто"]
[null,":45",null,null,"Служба безопасности","Перерыв","Отдел обсл. клиентов",null,"Телефоны","Перерыв"]
[null,"16:00",{"$nulls":3},"Консультант",null,null,"Телефоны","Закрыто"]
[null,":15",{"$nulls":3},"Консультант",null,null,"Телефоны","Закрыто"]
[null,":30",{"$nulls":3},"Консультант",{"$nulls":3},"Закрыто"]
[null,":45",{"$nulls":3},"Консультант",{"$nulls":3},"Закрыто"]
[null,"17:00",{"$nulls":3},"Консультант",{"$nulls":3},"Закрыто"]
[null,":15",{"$nulls":3},"Консультант"]
[null,":30",{"$nulls":3},"Консультант"]
[null,":45"]
[null,"18:00"]
[]
[]
[]
[]
["График работы сотрудников"]
[]
[null,"ИТОГО:",null,{"$f":"SUM(244:244)","v":{"v":56,"d":"56.00"}}]
[null,"ЧАСЫ:",null,{"$f":"ОбщееКоличествоРабочихЧасовПоВсемСотрудникамЗаДень","v":8},8,8,8,8,8,8,{"v":0,"d":"0.00"},{"v":0,"d":"0.00"},{"v":0,"d":"0.00"},{"v":0,"d":"0.00"},{"v":0,"d":"0.00"},{"v":0,"d":"0.00"},{"v":0,"d":"0.00"},{"v":0,"d":"0.00"},{"v":0,"d":"0.00"},{"v":0,"d":"0.00"},{"v":0,"d":"0.00"}]
[null,"СОТРУДНИК:",null,"Егоров, В.","Горноженко Д.","Климов С.","Грачев Н.","Верный Г.","Ерёменко А.","Ильина Ю."]
[]
[null,{"$f":"B187+1","v":"2012-07-20T09:00:00"}]
[null,{"$f":"B247","v":41110.375},{"$nulls":5},"Отпуск"]
[null,{"$f":"ОтображениеПериодов","v":":15"},null,"Конторка дежурного",{"$nulls":3},"Отпуск"]
[null,":30",null,"Конторка дежурного",{"$nulls":3},"Отпуск"]
[null,":45",null,"Конторка дежурного","Начальник смены",null,"Отдел обсл. клиентов","Отпуск"]
[null,"22:00",null,"Конторка дежурного","Начальник смены",null,"Отдел обсл. клиентов","Отпуск"]
[null,":15",null,"Конторка дежурного","Начальник смены",null,"Отдел обсл. клиентов","Отпуск"]
[null,":30",null,"Конторка дежурного","Начальник смены",null,"Отдел обсл. клиентов","Отпуск","Бухгалтерский учет"]
[null,":45",null,"Конторка дежурного","Начальник смены",null,"Отдел обсл. клиентов","Отпуск","Бухгалтерский учет","Вахтер"]
[null,"23:00",null,"Конторка дежурного","Начальник смены",null,"Отдел обсл. клиентов","Отпуск","Бухгалтерский учет","Вахтер"]
[null,":15",null,"Конторка дежурного","Начальник смены","Консультант","Отдел обсл. клиентов","Отпуск","Бухгалтерский учет","Вахтер"]
[null,":30",null,"Конторка дежурного","Перерыв","Консультант","Отдел обсл. клиентов","Отпуск","Бухгалтерский учет","Вахтер"]
[null,":45",null,"Обед","Начальник смены","Консультант","Отдел обсл. клиентов","Отпуск","Бухгалтерский учет","Вахтер"]
[null,"0:00",null,"Обед","Начальник смены","Консультант","Отдел обсл. клиентов","Отпуск","Бухгалтерский учет","Вахтер"]
[null,":15",null,"Конторка дежурного","Начальник смены","Консультант","Отдел обсл. клиентов","Отпуск","Перерыв","Вахтер"]
[null,":30",null,"Конторка дежурного","Начальник смены","Перерыв","Отдел обсл. клиентов","Отпуск","Телефоны","Перерыв"]
[null,":45",null,"Конторка дежурного","Начальник смены","Консультант","Отдел обсл. клиентов","Отпуск","Телефоны","Вахтер"]
[null,"1:00",null,"Конторка дежурного","Начальник смены","Консультант","Отдел обсл. клиентов","Отпуск","Телефоны","Вахтер"]
[null,":15",null,"Конторка дежурного","Начальник смены","Консультант","Обед","Отпуск","Телефоны","Вахтер"]
[null,":30",null,null,"Начальник смены","Консультант","Обед","Отпуск","Телефоны","Вахтер"]
[null,":45",null,null,"Начальник смены","Консультант","Обед","Отпуск","Обед","Вахтер"]
[null,"2:00",null,"Кассир","Обед","Консультант","Обед","Отпуск","Обед","Вахтер"]
[null,":15",null,"Кассир","Обед","Консультант","Отдел обсл. клиентов","Отпуск","Телефоны","Вахтер"]
[null,":30",null,"Кассир","Обед","Обед","Отдел обсл. клиентов","Отпуск","Телефоны","Обед"]
[null,":45",null,"Кассир","Обед","Обед","Отдел обсл. клиентов","Отпуск","Телефоны","Обед"]
[null,"3:00",null,"Кассир","Служба безопасности","Обед","Отдел обсл. клиентов","Отпуск","Телефоны","Обед"]
[null,":15",null,"Кассир","Служба безопасности","Обед","Отдел обсл. клиентов","Отпуск","Телефоны","Обед"]
[null,":30",null,"Кассир","Служба безопасности","Консультант","Отдел обсл. клиентов","Отпуск","Телефоны","Закрыто"]
[null,":45",null,"Кассир","Служба безопасности","Консультант","Отдел обсл. клиентов","Отпуск","Телефоны","Закрыто"]
[null,"4:00",null,"Кассир","Служба безопасности","Консультант","Отдел обсл. клиентов","Отпуск","Перерыв","Закрыто"]
[null,":15",null,"Перерыв","Служба безопасности","Консультант","Перерыв","Отпуск","Телефоны","Закрыто"]
[null,":30",null,"Кассир","Служба безопасности","Консультант","Отдел обсл. клиентов","Отпуск","Телефоны","Закрыто"]
[null,":45",null,"Кассир","Служба безопасности","Консультант","Отдел обсл. клиентов","Отпуск","Телефоны","Закрыто"]
[null,"5:00",null,"Кассир","Служба безопасности","Консультант","Отдел обсл. клиентов",null,"Телефоны","Закрыто"]
[null,":15",null,"Кассир","Служба безопасности","Консультант","Отдел обсл. клиентов",null,"Телефоны","Закрыто"]
[null,":30",null,"Кассир","Служба безопасности","Консультант","Отдел обсл. клиентов",null,"Телефоны","Закрыто"]
[null,":45",null,"Кассир","Служба безопасности","Консультант","Отдел обсл. клиентов",null,"Телефоны","Закрыто"]
[null,"6:00",null,"Кассир","Служба безопасности","Консультант","Отдел обсл. клиентов",null,"Телефоны","Закрыто"]
[null,":15",null,"Кассир","Служба безопасности","Консультант","Отдел обсл. клиентов",null,"Телефоны","Закрыто"]
[null,":30",null,null,"Служба безопасности","Консультант","Отдел обсл. клиентов",null,"Телефоны","Закрыто"]
[null,":45",null,null,"Служба безопасности","Перерыв","Отдел обсл. клиентов",null,"Телефоны","Перерыв"]
[null,"7:00",{"$nulls":3},"Консультант",null,null,"Телефоны","Закрыто"]
[null,":15",{"$nulls":3},"Консультант",null,null,"Телефоны","Закрыто"]
[null,":30",{"$nulls":3},"Консультант",{"$nulls":3},"Закрыто"]
[null,":45",{"$nulls":3},"Консультант",{"$nulls":3},"Закрыто"]
[null,"8:00",{"$nulls":3},"Консультант",{"$nulls":3},"Закрыто"]
[null,":15",{"$nulls":3},"Консультант"]
[null,":30",{"$nulls":3},"Консультант"]
[null,":45"]
[null,"9:00"]

{"sheet":"Настройка","index":1,"n_rows":26,"n_cols":7,"rows_kept":26}
[null,"Настройка"]
[]
[]
[null,"ШАГИ ИЗМЕНЕНИЯ ПРИ ВВОДЕ ЧАСОВ",4]
[]
[]
[]
[]
[]
[null,"Сотрудники",null,"Должность/Нерабочее время","Цвет","Оплаченные","Весь день"]
[null,"Егоров, В.",null,"Обед",1,false,false]
[null,"Верный Г.",null,"Перерыв",1,false,false]
[null,"Ерёменко А.",null,"Выходной",1,false,true]
[null,"Гладких А.",null,"Больничный",1,false,true]
[null,"Горноженко Д.",null,"Свободный выходной",1,true,true]
[null,"Грачев Н.",null,"Отпуск",1,true,true]
[null,"Ильина Ю.",null,"Конторка дежурного",2,true,false]
[null,"Климов С.",null,"Кассир",3,true,false]
[{"$nulls":3},"Начальник смены",4,true,false]
[{"$nulls":3},"Консультант",5,true,false]
[{"$nulls":3},"Отдел обсл. клиентов",6,true,false]
[{"$nulls":3},"Телефоны",7,true,false]
[{"$nulls":3},"Служба безопасности",8,true,false]
[{"$nulls":3},"Вахтер",9,true,false]
[{"$nulls":3},"Бухгалтерский учет",10,true,false]
[{"$nulls":3},"Закрыто",11,true,false]